Cogmind - Beta 16 @@@ ROGUE MODE // 2025.11.22 @ 20:42:01 Player: nevada Result: Destroyed by EQ-2QU(R) with Subdweller Machine Gun Performance ------------- Evolutions (0) 0 Regions Visited (2) 400 Robots Destroyed (8) 40 Value Destroyed (177) 177 Prototype IDs (1) 20 Alien Tech Used (0) 0 Bonus (0) 0 TOTAL SCORE: 637 Bonus ------- None Cogmind --------- Core Integrity 0/250 Matter 300/300 Energy 271/300 System Corruption 0% Temperature Cool (5) Movement Rolling (110) Location -10/Subcaves Parts ------- > --- POWER (1+1) ------ Subdweller Power Source Subdweller Power Source (+) > --- PROPULSION (2) --- Subdweller Monowheel Subdweller Monowheel > --- UTILITY (2) ------ Scrap Shield > --- WEAPON (2) ------- Powered Cannon > --- INVENTORY (5) ---- Flight Unit Subdweller Optics Seismic Detector Peak State ------------ > --- POWER ------------ Subdweller Power Source Subdweller Power Source > --- PROPULSION ------- Subdweller Monowheel Subdweller Monowheel > --- UTILITY ---------- Scrap Shield > --- WEAPON ----------- Powered Cannon > --- INVENTORY -------- Flight Unit Subdweller Optics Seismic Detector [Rating: 26] Favorites ----------- Power Subdweller Power Source Engine Subdweller Power Source Propulsion Flight Unit Leg Aluminum Leg Wheel Subdweller Monowheel Flight Unit Flight Unit Utility Scrap Shield Device Seismic Detector Storage Small Storage Unit Protection Scrap Shield Weapon Light Assault Rifle Energy Cannon Powered Cannon Ballistic Gun Light Assault Rifle Build | -11 -10 -10 ------- Run | Yrd Mat Sub Slots Evolved . | . . . Power . | . . . Propulsion . | . . . Utility . | . . . Weapon . | . . . Parts Attached 13 | 2 5 6 Power 2 | . . 2 Engine 2 | . . 2 Core . | . . . Reactor . | . . . Propulsion 7 | 2 3 2 Treads . | . . . Leg . | . . . Wheel 4 | 2 . 2 Hover . | . . . Flight 3 | . 3 . Utility 3 | . 2 1 Device 2 | . 2 . Storage . | . . . Processor . | . . . Hackware . | . . . Protection 1 | . . 1 Artifact . | . . . Weapon 1 | . . 1 Energy Gun . | . . . Energy Cannon 1 | . . 1 Ballistic Gun . | . . . Ballistic Cannon . | . . . Launcher . | . . . Special Weapon . | . . . Impact Weapon . | . . . Slashing Weapon . | . . . Piercing Weapon . | . . . Special Melee Weapon . | . . . Unidentified Prototypes 1 | . . 1 Parts Lost 8 | . 6 2 Power 1 | . 1 . Propulsion 4 | . 3 1 Utility 1 | . 1 . Weapon 2 | . 1 1 Highest Loss Streak 6 | . 6 2 To Critical Strikes . | . . . Average Backups 1 | 5 . 2 Power . | 1 . . Propulsion . | 4 . . Utility 1 | . . 1 Weapon . | . . . Tool/Special . | . . . Unused Backups 6 | . 4 2 Power 1 | . 1 . Propulsion . | . . . Utility 2 | . 1 1 Weapon 3 | . 2 1 Tool/Special . | . . . Average Slot Usage (%) 68 | . 82 59 Engine 8 | . 10 7 Wheel 13 | . 22 8 Flight 11 | . 3 16 Device 4 | . 8 . Storage 3 | . 8 . Protection 7 | . . 12 Energy Cannon 3 | . . 5 Ballistic Gun 15 | . 26 7 Peak Build Rating 26 | 6 7 26 Average Rating 11 | 6 5 14 On Entrance 5 | 6 6 4 Avg Prop Armor Cover (%) 2 | . . 2 Naked Turns . | . . . Heaviest Build 37 | 12 13 37 Greatest Support 40 | 26 26 40 Greatest Overweight (x) 8 | . . 8 Average Overweight (x) . | . . 2 Largest Inventory Capacity 8 | 8 8 5 Average Capacity 5 | 8 6 5 Most Carried 5 | 5 3 4 Average Carried 1 | 3 . 2 Final Capacity 8 | 8 5 5 Final Carried 3 | . . 3 Class Distribution -------------------- 81% | Mutant 18% | Subdweller-Mutant Dominant Class ---------------- Mutant | -10/Materials Mutant | -10/Subcaves Resources | -11 -10 -10 ----------- Run | Yrd Mat Sub Matter Collected 326 | 200 47 79 Remotely . | . . . Salvage Created 249 | . 129 120 Parts 19 | . 10 9 Haulers Intercepted 1 | . 1 . Recyclers Shooed . | . . . Parts Field Recycled . | . . . Retrieved Matter . | . . . Parts Self-Destructed . | . . . Prevented . | . . . Parts Restored . | . . . Kills | -11 -10 -10 ------- Run | Yrd Mat Sub Combat Hostiles Destroyed 6 | . 3 3 Guns 3 | . 3 . Cannons 2 | . . 2 Classes Destroyed 5 | . 4 1 Worker 1 | . 1 . Hauler 1 | . 1 . Swarmer 2 | . 2 . Grunt 1 | . 1 . Subdweller 3 | . . 3 Best Kill Streak 4 | . 4 3 Combat Bots Only 3 | . 3 3 Max Kills in Single Turn 1 | . 1 1 Gunslinging . | . . . Exploded . | . . . Melee . | . . . Uniques/NPCs Destroyed . | . . . Combat | -11 -10 -10 -------- Run | Yrd Mat Sub Hostile Shots Fired 109 | . 97 12 Missed 29 | . 26 3 Hits 80 | . 71 9 Projectile 80 | . 71 9 Critical Strikes 1 | . 1 . Damage Taken 824 | . 591 233 Core 259 | . 240 19 Absorbed by Shields . | . . . Core Remaining (%) 100 | 100 . . Volleys Fired 25 | . 16 9 Largest 2 | . 2 1 Hottest 120 | . 40 120 Shots Fired 41 | . 32 9 Gun 36 | . 32 4 Cannon 5 | . . 5 Launcher . | . . . Special . | . . . Kinetic 36 | . 32 4 Thermal 5 | . . 5 Explosive . | . . . Electromagnetic . | . . . Robot Hit Streak 7 | . 6 7 Robot Miss Streak 5 | . 5 1 Penetration Max . | . . . Secondary Targets 1 | . 1 . Max Gunslinging Chain 1 | . 1 . Shots Hit Robots 26 | . 20 6 Core Hits 11 | . 8 3 Critical Kills 1 | . . 1 Critical Parts Destroyed 1 | . 1 . Critical Strikes 2 | . 1 1 Meltdown 1 | . . 1 Destroy 1 | . 1 . Melee Attacks . | . . . Impact . | . . . Slashing . | . . . Piercing . | . . . Sneak Attacks . | . . . Combat Hostiles . | . . . Follow-up Attacks . | . . . Damage Inflicted 446 | . 161 285 Guns 175 | . 159 16 Cannons 262 | . . 262 Explosions . | . . . Melee . | . . . Ramming 9 | . 2 7 Kinetic 175 | . 159 16 Thermal 262 | . . 262 Explosive . | . . . Electromagnetic . | . . . Impact . | . . . Slashing . | . . . Piercing . | . . . Highest Corruption . | . . . Average Corruption . | . . . Corruption Purged . | . . . Corruption Blocked . | . . . Overload Shots 2 | . . 2 Overflow Damage 17 | . . 17 Projectiles 17 | . . 17 Explosions . | . . . Melee . | . . . Knockbacks . | . . . Impact . | . . . Kinetic . | . . . Secondary . | . . . Self-Inflicted Damage 4 | . 1 3 Shots . | . . . Rammed 2 | . 1 1 Targets Rammed 2 | . 1 1 Kicked . | . . . Crushed . | . . . Highest Temperature 85 | . 6 85 Average Temperature 18 | . 4 40 Received Heat Transfer 87 | . 48 39 Siege Activations . | . . . Martial Activations . | . . . Shielding Activations . | . . . Robots Disrupted . | . . . Combat Hostiles . | . . . Robots Corrupted . | . . . Combat Hostiles . | . . . Parts Fried . | . . . Impact Corruptions . | . . . Robots Melted 1 | . . 1 Combat Hostiles 1 | . . 1 Parts Melted 2 | . . 2 Heat Transferred . | . . . Parts Sabotaged . | . . . Parts Stolen . | . . . Parts Stripped . | . . . Power Chain Reactions . | . . . Alert | -11 -10 -10 ------- Run | Yrd Mat Sub Maximum Alert Level . | . . . Low Security (%) 100 | 100 100 . Level 1 . | . . . Level 2 . | . . . Level 3 . | . . . Level 4 . | . . . Level 5 . | . . . High Security . | . . . Max Security . | . . . Peak Influence 95 | . 95 . Initial . | . . . Average 12 | . 13 . Influence Increases 152 | . 152 . Destroy 0b10 Robot/C 60 | . 60 . Destroy 0b10 Robot/NC 10 | . 10 . Destroy Leader 12 | . 12 . Successful Hack 10 | . 10 . Lose Combat Pursuer 60 | . 60 . Influence Decreases 152 | . 57 95 Entered New Map 47 | . . 47 Time Decay 85 | . 37 48 Lost Part 20 | . 20 . Squads Dispatched . | . . . Investigation . | . . . Extermination . | . . . Reinforcement . | . . . Assault . | . . . Garrison . | . . . Intercept . | . . . Searches Triggered . | . . . Construction Impeded . | . . . Haulers Reinforced . | . . . Active Scanning Responses . | . . . Cargo Convoy Interrupts . | . . . Stealth | -11 -10 -10 --------- Run | Yrd Mat Sub Distress Signals 1 | . 1 . Communications Jammed . | . . . Distress Signals . | . . . Times Spotted 26 | . 12 14 Peak Tracking Total 9 | . 9 7 Tactical Retreats 2 | . 2 . Traps | -11 -10 -10 ------- Run | Yrd Mat Sub Traps Triggered . | . . . Indirectly . | . . . Trap Hack Attempts . | . . . Triggered . | . . . Disarmed 6 | . 6 . Reprogrammed . | . . . Reused . | . . . Traps Extracted . | . . . Installed . | . . . Triggered . | . . . Machines | -11 -10 -10 ---------- Run | Yrd Mat Sub Machines Disabled . | . . . Max in Single Turn . | . . . Machines Repaired . | . . . Machines Dismantled . | . . . Machines Sabotaged . | . . . Overloaded Fab Kills . | . . . Hacking | -11 -10 -10 --------- Run | Yrd Mat Sub Machines Accessed 3 | . 3 . Terminals 3 | . 3 . Fabricators . | . . . Repair Stations . | . . . Recycling Units . | . . . Scanalyzers . | . . . Garrison Access . | . . . Total Hacks 7 | . 7 . Successful 5 | . 5 . Failed 2 | . 2 . Catastrophic . | . . . Database Lockouts . | . . . Manual . | . . . Terminals 7 | . 7 . Fabricators . | . . . Repair Stations . | . . . Recycling Units . | . . . Scanalyzers . | . . . Garrison Access . | . . . Terminal Hacks 5 | . 5 . Alert Level 1 | . 1 . Locate Traps 1 | . 1 . Disarm Traps 1 | . 1 . Investigation Status 1 | . 1 . Zone Layout 1 | . 1 . Fabricator Hacks . | . . . Repair Station Hacks . | . . . Recycling Unit Hacks . | . . . Scanalyzer . | . . . Garrison Access Hacks . | . . . Unauthorized Hacks . | . . . Terminals . | . . . Fabricators . | . . . Repair Stations . | . . . Recycling Units . | . . . Scanalyzers . | . . . Garrison Access . | . . . Data Cores Recovered . | . . . Used . | . . . Hacking Detections 2 | . 2 . Full Trace Events . | . . . Feedback Events . | . . . Feedback Blocked . | . . . Robot Schematics Acquired . | . . . Robots Built . | . . . Authchips . | . . . Time . | . . . Total Robot Build Rating . | . . . Part Schematics Acquired . | . . . Parts Built . | . . . Authchips . | . . . Time . | . . . Total Part Build Rating . | . . . Part Studies Acquired . | . . . Parts Repaired . | . . . Time . | . . . Parts Recycled . | . . . Recycled Matter . | . . . Retrieved Matter . | . . . Retrieved Components . | . . . Parts Scanalyzed . | . . . Part Schematics Acquired . | . . . Parts Damaged . | . . . Bothacking | -11 -10 -10 ------------ Run | Yrd Mat Sub Used RIF Installer . | . . . Robots Hacked . | . . . Non-combat . | . . . Combat . | . . . Robot Hacks Applied . | . . . Relay Couplers Released . | . . . Fabnet Peak Effective % . | . . . Robots Rewired . | . . . Allies Hacked . | . . . Hacks Repelled . | . . . Allies | -11 -10 -10 -------- Run | Yrd Mat Sub Total Allies . | . . . Largest Group . | . . . Highest-Rated Group . | . . . Highest-Rated Ally . | . . . Total Orders . | . . . Ally Attacks . | . . . Total Damage . | . . . Kills . | . . . Allies Corrupted . | . . . Allies Melted . | . . . Intel | -11 -10 -10 ------- Run | Yrd Mat Sub Active Infowar (turns) 126 | . 114 12 Terrain 73 | . 73 . Seismic 94 | . 82 12 Robot Analysis Total . | . . . Derelict Logs Recovered . | . . . Drone Launches . | . . . Drone Recoveries . | . . . Exploration | -11 -10 -10 ------------- Run | Yrd Mat Sub Turns Passed 602 | 7 232 363 Spaces Moved 403 | 1 229 173 Core 64 | . 7 57 Treads . | . . . Legs . | . . . Wheels 260 | 1 167 92 Hover . | . . . Flight 79 | . 55 24 Fastest Speed 37 | 90 37 37 Average Speed 122 | 90 76 184 Slowest Speed 450 | 90 90 450 Overloaded Moves . | . . . Propulsion Burnouts . | . . . Robots Hopped . | . . . Potential Cave-ins . | . . . Cave-ins Triggered . | . . . Exploration Rate (%) 17 | 2 41 9 Regions Visited 2 Branch Regions 1 Pre-discovered Areas 1 | . . 1 Known Exits Taken . | . . . Unknown Exits Taken 2 | 1 1 . Scrap Searched . | . . . Spaces Dug . | . . . Terrain Destroyed . | . . . Melee . | . . . Projectile . | . . . AOE . | . . . Terrain Rammed . | . . . Walls Destroyed . | . . . Machines Disabled . | . . . Actions | -11 -10 -10 --------- Run | Yrd Mat Sub Total 478 | 8 260 210 Wait 12 | . 4 8 Move 401 | . 228 173 Hop . | . . . Pick Up 13 | . 5 8 Fast Attach . | . . . Attach 9 | . 4 5 Detach 1 | . . 1 Swap 4 | 2 1 1 Drop 8 | 6 1 1 Fire 25 | . 16 9 Melee . | . . . Ram 2 | . 1 1 Kick . | . . . Crush . | . . . Escape Stasis . | . . . Rewire . | . . . Trap . | . . . Miscellaneous 3 | . . 3 Route ------- -11/Scrapyard -10/Materials (discovered 2 exits: [*Mat] / [*Sub]) -10/Subcaves History --------- Turn | Location | Event 8 | -11/Scrapyard | Discovered new exit (range 0) 8 | -11/Scrapyard | Entered Materials 90 | -10/Materials | Discovered new exit (range 9) 131 | -10/Materials | Discovered new exit (range 9) 198 | -10/Materials | Core integrity fell below 50% 203 | -10/Materials | Core integrity fell below 20% 240 | -10/Materials | Entered Subcaves 241 | -10/Subcaves | Shifting Twisted Machinery released Sub. Monowheel 241 | -10/Subcaves | Approached by a straggling Scientist 245 | -10/Subcaves | Shifting Twisted Machinery released Sub. Optics 254 | -10/Subcaves | Lost 6 parts (1p3n1u1w) 312 | -10/Subcaves | Build established: Mutant 420 | -10/Subcaves | A Subdweller sparked back to life 420 | -10/Subcaves | A Subdweller sparked back to life 420 | -10/Subcaves | A Subdweller sparked back to life 430 | -10/Subcaves | Found Prototype Energy Cannon 431 | -10/Subcaves | Identified Powered Cannon 432 | -10/Subcaves | Attached Powered Cannon, gained temporary slot: Power 574 | -10/Subcaves | Learned location of Zion (-7) 574 | -10/Subcaves | Met a Zionite searching for "candidates" 582 | -10/Subcaves | Ambushed by swarm of Subdwellers 584 | -10/Subcaves | Ambushed by Subdwellers from Twisted Machinery 584 | -10/Subcaves | Ambushed by Subdwellers from Twisted Machinery 589 | -10/Subcaves | Ambushed by Subdwellers from Twisted Machinery 589 | -10/Subcaves | Ambushed by Subdwellers from Twisted Machinery 603 | -10/Subcaves | Destroyed by EQ-2QU(R) with Subdweller Machine Gun Last Messages --------------- 00587_ C8-KJR(z) triggered Piercing Trap. 00587_ Spikes shoot up from the floor. 00587_ C8-KJR(z) destroyed. 00589_ Q0-H4U(R) angrily emerges from the Twisted Machinery. 00589_ NW-4V4(R) angrily emerges from the Twisted Machinery. 00589_ 1D-QD1(h) destroyed. 00590_ Slammed into NN-0HR(R). 00590_ Destabilizing: System interference. 00590_ Powered Cannon temporarily disabled. 00591_ 3Z-NTD(g): "Sorry we're late! Had another grouchy Sub to deal with. Who's the new fellow?" 00595_ V9-HKD(g) destroyed. 00595_ AG-96Q(R) suffers critical hit (Burn). 00595_ AG-96Q(R) destroyed. 00595_ K8-9Q5(R) affixes Scrap Shield Fragment to Scrap Shield. WO-MXB(c): "I think it's somewhere northwest of here" 00598_ EQ-2QU(R) affixes Scrap Shield Fragment to Scrap Shield. 00600_ CF-M8G(R) suffers critical hit (Burn). 00602_ Q0-H4U(R) destroyed. 00602_ DQ-OYW(g) destroyed. Map ----- +----------------------------------------------------+ | ?????????????????????????????????????????????????? | | ?????????????????????????????????????????????????? | | ?????????????????????????????????????????????????? | | ?????????????????????????????????????????????????? | | ?????????????????????????????????????????????????? | | ?????????????????????????????????????????????????? | | ?????????????????????????????????????????????????? | | ?????????????????????????????????????????????????? | | ?????????????????????????????????????????????????? | | ?????????????????????????????????????????????????? | | #????????????????????????????????????????????????? | | #####????????????????????????????????????????????? | | ## #????????????????????????????????????????????? | | #????????????????????????????????????????????? | | ###??????????????????????????????????????????? | | ##????###??????????????????????????????????? | | # ###?## ##????????????????##???????????????? | | # ### ##?????????????? #???????????????? | | #### ###########??? ^#????????????????? | | ???## # #!]#"#! ###=^ ##???????????????? | | ##?## # # &R%RR!%* !% #???????????????? | | ### ## ##"%=%&&!%& #????????????????? | | ## ### ### #R!R[ [# #" #????????????????? | | "" ## ##?## ##g&&= ##?#???????????????????? | | """ ""##??# # [&!% #?????????????????????? | | """##### c [@ #?????????????????????? | | #### #????????????????????? | | ## #?## ## ### [ #????????????????????? | | ###### ##??######?## ##????????????????????? | | ?????######???????????######?????????????????????? | | ?????????????????????????????????????????????????? | | ?????????????????????????????????????????????????? | | ?????????????????????????????????????????????????? | | ?????????????????????????????????????????????????? | | ?????????????????????????????????????????????????? | | ?????????????????????????????????????????????????? | | ?????????????????????????????????????????????????? | | ?????????????????????????????????????????????????? | | ?????????????????????????????????????????????????? | | ?????????????????????????????????????????????????? | | ?????????????????????????????????????????????????? | | ?????????????????????????????????????????????????? | | ?????????????????????????????????????????????????? | | ?????????????????????????????????????????????????? | | | | | | | | | | | | | +----------------------------------------------------+ Best States ------------- Heat Dissipation 25 Energy Generation 25 Energy Capacity 300 Matter Stores 300 Matter Capacity 300 Sight Range 16 Terrain Scan Range 14 Terrain Scan Density 10 Armor Coverage 800 Evasion (%) 62 Item Schematics ----------------- None Robot Schematics ------------------ None Fabricated ------------ Nothing Repaired ---------- Nothing Studied --------- None Alien Tech Used ----------------- None Achievements -------------- Survival Of The Most Covered Challenges ------------ None Game ------ Seed AdvancedTransportFalx Manual? 0 Play Time 00:11:31 Cumulative 21.4 hours Start 2025.11.22 @ 20:31:51 End 2025.11.22 @ 20:42:01 Sessions 1 Manual Loads 0 Difficulty Rogue Special Mode None Game No. 78 Rogue 74 Adventurer 4 Explorer 0 Win Type - Total 0 Types 0/0/0/0/0/0/0/0/0/0 Lore% 15 Gallery% 20 Achievement% 15 Wizard Run 0 Options --------- Layout 0 ASCII 0 Keyboard 0 Movement Mouse Keybinds 1 Fullscreen 2 Font 18/SmallcapsGlow Map View 76x50 Zoom Use 0% Tactical HUD 1 Map Filters NONE Filters NONE Steam 1 RUN: 810db2c8-728b-464c-9ce2-bbca39386ab4